bitfinex/quotes_BTCUSD_20240901
["timestamp","ask_amount","ask_price","bid_price","bid_amount"]
[1725218994562,1.3276435,58562.0,58561.0,0.00185097]
[1725218994799,2.28606957,58562.0,58561.0,0.00185097]
[1725218995034,2.2388405,58562.0,58561.0,0.00185097]
[1725218995266,1.8315615,58562.0,58561.0,0.00185097]
[1725218995493,2.7883975,58562.0,58561.0,0.00185097]
[1725218995941,1.7313615,58562.0,58561.0,0.00185097]
[1725218996592,1.3276435,58562.0,58561.0,0.00185097]
[1725218998351,2.3925755,58562.0,58561.0,0.00185097]
[1725218998560,2.4155755,58562.0,58561.0,0.00185097]
[1725218998771,2.0537795,58562.0,58561.0,0.00185097]
[1725218998979,2.3952975,58562.0,58561.0,0.00185097]
[1725219000296,2.0537795,58562.0,58561.0,0.00185097]
[1725219000509,1.4128435,58562.0,58561.0,0.00185097]
[1725219001421,1.3898435,58562.0,58561.0,0.00185097]
[1725219001649,1.3276435,58562.0,58561.0,0.00185097]
[1725219001870,1.3276435,58562.0,58561.0,0.01627607]
[1725219002323,1.3276435,58562.0,58561.0,0.00185097]
[1725219002545,0.9861255,58562.0,58561.0,0.00185097]
[1725219008044,1.8987255,58562.0,58561.0,0.00185097]
[1725219008285,1.9217255,58562.0,58561.0,0.00185097]
[1725219008511,2.2632435,58562.0,58561.0,0.00185097]
[1725219008742,2.1564215,58562.0,58561.0,0.00185097]
[1725219010656,2.124091,58562.0,58561.0,0.00185097]
[1725219012029,2.12491,58562.0,58561.0,0.00185097]
[1725219012492,2.12691,58562.0,58561.0,0.00185097]
[1725219012722,2.63697964,58562.0,58561.0,0.00185097]
[1725219012941,2.468428,58562.0,58561.0,0.00185097]
[1725219013169,2.12491,58562.0,58561.0,0.00185097]
[1725219013665,2.12691,58562.0,58561.0,0.00185097]
[1725219014113,2.13691,58562.0,58561.0,0.00285097]
[1725219016771,2.05181,58562.0,58561.0,0.00285097]
[1725219016996,1.67065,58562.0,58561.0,0.00285097]
[1725219017451,1.64765,58562.0,58561.0,0.00285097]
[1725219017663,1.859035,58562.0,58561.0,0.00285097]
[1725219017877,1.786335,58562.0,58561.0,0.00285097]
[1725219018280,1.64765,58562.0,58561.0,0.00285097]
[1725219019661,1.67445193,58562.0,58561.0,0.00285097]
[1725219021286,1.33293393,58562.0,58561.0,0.00285097]
[1725219021728,1.43404093,58562.0,58561.0,0.00285097]
[1725219021952,1.33293393,58562.0,58561.0,0.00285097]
[1725219023580,0.03762093,58562.0,58561.0,0.15145097]
[1725219023812,0.03762093,58562.0,58561.0,0.18223696]
[1725219024053,0.03762093,58562.0,58561.0,0.20383003]
[1725219024305,0.54989793,58562.0,58561.0,0.17304404]
[1725219024533,0.54989793,58562.0,58561.0,0.17204404]
[1725219024534,0.53989793,58562.0,58561.0,0.17204404]
[1725219024749,0.20137993,58562.0,58561.0,0.17204404]
[1725219025023,0.20137993,58562.0,58561.0,0.18924844]
[1725219026023,0.03062093,58562.0,58561.0,0.18924844]
[1725219026258,0.03162093,58562.0,58561.0,0.36501044]
[1725219026922,0.03162093,58562.0,58561.0,0.19424844]
[1725219027159,0.02762093,58562.0,58561.0,0.18924844]
[1725219027380,0.02862093,58562.0,58561.0,0.19524844]
[1725219027818,0.02762093,58562.0,58561.0,0.18924844]
[1725219028032,0.02862093,58562.0,58561.0,0.19524844]
[1725219029451,0.02862093,58562.0,58561.0,0.36601044]
[1725219029665,0.02862093,58562.0,58561.0,0.19524844]
[1725219030782,0.02862093,58562.0,58561.0,0.36601044]
[1725219032588,0.02862093,58562.0,58561.0,0.70753444]
[1725219033264,0.02862093,58562.0,58561.0,1.05405844]
[1725219033483,0.02862093,58562.0,58561.0,1.10528301]
[1725219035157,0.001819,58562.0,58561.0,1.10528301]
[1725219035372,0.001819,58562.0,58561.0,1.05405844]
[1725219038500,0.02861157,58562.0,58561.0,1.05405844]
[1725219038925,0.02861157,58562.0,58561.0,1.39558244]
[1725219039409,0.02861157,58562.0,58561.0,1.39758244]
[1725219039640,0.02861157,58562.0,58561.0,1.44871871]
[1725219039857,0.02861157,58562.0,58561.0,1.39758244]
[1725219040080,0.02861157,58562.0,58561.0,1.39558244]
[1725219040294,0.02861157,58562.0,58561.0,1.39758244]
[1725219041859,0.02861157,58562.0,58561.0,1.05605844]
[1725219042099,0.02861157,58562.0,58561.0,0.02944404]
[1725219042100,0.54088857,58562.0,58561.0,0.02944404]
[1725219042316,1.89762957,58562.0,58561.0,0.02944404]
[1725219042538,1.93743757,58562.0,58561.0,0.00785097]
[1725219042978,1.74084257,58562.0,58561.0,0.00785097]
[1725219043643,1.88371857,58562.0,58561.0,0.00785097]
[1725219043871,1.88271857,58562.0,58561.0,0.00185097]
[1725219044292,1.73984257,58562.0,58561.0,0.00585097]
[1725219046307,1.32292457,58562.0,58561.0,0.00585097]
[1725219048593,1.32292457,58562.0,58561.0,0.02045607]
[1725219050617,0.98140657,58562.0,58561.0,0.02045607]
[1725219051610,0.98140657,58562.0,58561.0,0.00585097]
[1725219057200,1.32292457,58562.0,58561.0,0.00585097]
[1725219059254,1.296132,58562.0,58561.0,0.00585097]
[1725219060395,0.954614,58562.0,58561.0,0.00585097]
[1725219061064,1.296132,58562.0,58561.0,0.00585097]
[1725219062305,0.954614,58562.0,58561.0,0.02045607]
[1725219062768,1.296132,58562.0,58561.0,0.02045607]
[1725219063005,0.954614,58562.0,58561.0,0.02045607]
[1725219063952,1.296132,58562.0,58561.0,0.02045607]
[1725219064682,0.954614,58562.0,58561.0,0.02045607]
[1725219064873,1.296132,58562.0,58561.0,0.02045607]
[1725219066006,0.954614,58562.0,58561.0,0.02045607]
[1725219068371,0.954614,58562.0,58561.0,0.00585097]
[1725219069311,0.98141213,58562.0,58561.0,0.00585097]
[1725219075911,0.98059313,58562.0,58561.0,0.00585097]
[1725219079210,1.38571113,58562.0,58561.0,0.00585097]
[1725219079433,1.57006113,58562.0,58561.0,0.00585097]
[1725219079656,1.59306113,58562.0,58561.0,0.08585097]
[1725219079881,1.93539713,58562.0,58561.0,0.08585097]
[1725219080110,2.27691513,58562.0,58561.0,0.08585097]
[1725219080826,2.27687513,58562.0,58561.0,0.08185097]
[1725219081052,1.93535713,58562.0,58561.0,0.08185097]
[1725219081915,1.94535713,58562.0,58561.0,0.08185097]
[1725219084639,1.47538913,58562.0,58561.0,0.08185097]
[1725219084856,1.39648913,58562.0,58561.0,0.08185097]
[1725219088768,0.54989313,58562.0,58561.0,0.08185097]
[1725219089013,0.54989313,58562.0,58561.0,0.10462607]
[1725219089014,0.181577,58562.0,58561.0,0.10462607]
[1725219089235,0.010818,58562.0,58561.0,0.10462607]
[1725219089449,0.171577,58562.0,58561.0,0.11966151]
[1725219089660,0.175577,58562.0,58561.0,0.11966151]
[1725219090090,0.171577,58562.0,58561.0,0.11966151]
[1725219090600,0.19837528,58562.0,58561.0,0.11966151]
[1725219090813,0.19837528,58562.0,58561.0,0.12166151]
[1725219091022,0.29837528,58562.0,58561.0,0.12166151]
[1725219092344,0.12761628,58562.0,58561.0,0.12166151]
[1725219092581,0.000818,58562.0,58561.0,0.12166151]
[1725219092794,0.100818,58562.0,58561.0,0.20447636]
[1725219093018,0.000818,58562.0,58561.0,0.78326236]
[1725219093486,0.000818,58562.0,58561.0,0.44173836]
[1725219095546,0.000818,58562.0,58561.0,0.43832351]
[1725219096636,0.000818,58562.0,58561.0,0.78684751]
[1725219096827,0.02761313,58562.0,58561.0,0.44332351]
[1725219099020,0.02761313,58562.0,58561.0,0.78484751]
[1725219101205,0.341381,58586.0,58579.0,0.1431]
[1725219101446,0.341366,58589.0,58579.0,0.47023906]
[1725219101447,0.170687,58587.0,58579.0,0.47023906]
[1725219101677,0.341366,58589.0,58579.0,0.47023906]
[1725219101678,0.170689,58586.0,58579.0,0.48707266]
[1725219101943,0.170692,58585.0,58579.0,0.50984776]
[1725219102195,0.170692,58585.0,58579.0,0.33913876]
[1725219102435,0.170687,58587.0,58579.0,0.50984776]
[1725219102664,0.02760409,58580.0,58579.0,0.85126676]
[1725219103174,0.02860409,58580.0,58579.0,0.85626676]
[1725219103429,0.02760409,58580.0,58579.0,0.85126676]
[1725219103914,0.02860409,58580.0,58579.0,0.85626676]
[1725219104400,0.02860409,58580.0,58579.0,1.19768576]
[1725219104667,0.001818,58580.0,58579.0,1.19768576]
[1725219105866,0.001818,58580.0,58579.0,1.20268576]
[1725219106337,0.001818,58580.0,58579.0,1.54610476]
[1725219106582,0.001818,58580.0,58579.0,1.55610476]
[1725219106809,0.001818,58580.0,58579.0,1.55410476]
[1725219107947,0.001818,58580.0,58579.0,1.55610476]
[1725219108453,0.424386,58602.0,58579.0,1.55610476]
[1725219108454,0.341264,58606.0,58598.0,0.170652]
[1725219108699,0.170641,58603.0,58597.0,0.15643006]
[1725219108925,0.170641,58603.0,58599.0,0.01727928]
[1725219109171,0.170641,58603.0,58598.0,0.18793391]
[1725219109401,0.170643,58602.0,58600.0,0.01727764]
[1725219109604,0.170643,58602.0,58599.0,0.0227751]
[1725219110116,0.170638,58604.0,58600.0,0.01727764]
[1725219110584,0.1,58603.0,58600.0,0.01727764]
[1725219110823,0.341262,58606.0,58601.0,0.03711338]
[1725219110824,0.170638,58604.0,58601.0,0.03711338]
[1725219111060,0.1,58603.0,58601.0,0.03711338]
[1725219111300,0.1,58603.0,58602.0,0.01727437]
[1725219112953,0.270639,58603.0,58602.0,0.02027437]
[1725219113187,0.953197,58603.0,58602.0,0.02027437]
[1725219113480,0.953197,58603.0,58602.0,0.003]
[1725219114198,0.611918,58603.0,58602.0,0.003]
[1725219114667,0.611918,58603.0,58602.0,0.02027437]
[1725219114910,0.611918,58603.0,58602.0,0.003]
[1725219115147,0.611918,58603.0,58602.0,0.02027437]
[1725219115385,0.611918,58603.0,58602.0,0.003]
[1725219115832,0.611918,58603.0,58602.0,0.02027437]
[1725219116267,0.612736,58603.0,58602.0,0.02027437]
[1725219117803,1.100915,58603.0,58602.0,0.02027437]
[1725219118018,1.100915,58603.0,58602.0,0.003]
[1725219118683,1.013315,58603.0,58602.0,0.003]
[1725219119500,1.354594,58603.0,58602.0,0.003]
[1725219120185,1.923412,58603.0,58602.0,0.003]
[1725219121515,1.946412,58603.0,58602.0,0.003]
[1725219121974,1.437194,58603.0,58602.0,0.003]
[1725219122197,0.341318,58597.0,58590.0,0.15984314]
[1725219122412,0.170663,58595.0,58591.0,0.170674]
[1725219122630,0.170661,58596.0,58591.0,0.0173535]
[1725219122857,0.17066,58596.0,58592.0,0.00341305]
[1725219123090,0.17066,58596.0,58593.0,0.05950516]
[1725219123315,0.341309,58598.0,58593.0,0.07685539]
[1725219123316,0.170655,58598.0,58593.0,0.07685539]
[1725219123534,0.007818,58603.0,58593.0,0.07685539]
[1725219123760,0.170661,58596.0,58594.0,0.03683996]
[1725219124184,0.170661,58596.0,58594.0,0.05418855]
[1725219124406,0.170654,58598.0,58594.0,0.05418855]
[1725219124638,0.270657,58597.0,58595.0,0.02258595]
[1725219124872,0.270657,58597.0,58595.0,0.0399329]
[1725219126701,0.1,58597.0,58595.0,0.0399329]
[1725219126916,0.270655,58598.0,58595.0,0.01734695]
[1725219128961,0.271655,58598.0,58595.0,0.01734695]
[1725219129406,0.000818,58597.0,58595.0,0.01734695]
[1725219129650,0.171475,58597.0,58595.0,0.01734695]
[1725219129878,0.1,58596.0,58595.0,0.01734695]
[1725219130103,0.1,58596.0,58588.0,0.0616]
[1725219130326,0.1,58596.0,58595.0,0.01734695]
[1725219130548,0.270662,58596.0,58591.0,0.170673]
[1725219130787,0.270662,58596.0,58592.0,0.2356831]
[1725219131029,0.1,58596.0,58592.0,0.25303497]
[1725219131275,0.271475,58597.0,58592.0,0.25303497]
[1725219131546,0.341315,58597.0,58593.0,0.03133202]
[1725219131814,0.512005,58593.0,58592.0,0.01735187]
[1725219132038,0.512005,58593.0,58587.0,0.170684]
[1725219132039,0.170672,58592.0,58587.0,0.170684]
[1725219132266,0.170672,58592.0,58588.0,0.0512066]
[1725219132729,0.19745562,58592.0,58588.0,0.0512066]
[1725219134155,0.02678362,58592.0,58588.0,0.0512066]
[1725219134382,0.170678,58590.0,58586.0,0.32711906]
[1725219134850,0.170678,58590.0,58588.0,0.006]
[1725219135086,0.19845762,58592.0,58588.0,0.006]
[1725219135324,0.02778362,58592.0,58590.0,0.170676]
[1725219135580,0.02678362,58592.0,58589.0,0.03331191]
[1725219135829,0.19745562,58592.0,58590.0,0.1312117]
[1725219136069,0.19745562,58592.0,58590.0,0.1302117]
[1725219136563,0.19845562,58592.0,58590.0,0.1362117]
[1725219138903,0.512023,58591.0,58590.0,0.006]
[1725219139177,1.015872,58591.0,58590.0,0.006]
[1725219139421,1.77587,58591.0,58590.0,0.006]
[1725219139878,1.434521,58591.0,58590.0,0.006]
[1725219141047,1.434521,58591.0,58571.0,0.1424]
[1725219141226,0.170712,58578.0,58573.0,0.170725]
[1725219141743,0.170712,58578.0,58574.0,0.0180374]
[1725219141944,0.02678888,58577.0,58574.0,0.0180374]
[1725219143701,0.170721,58576.0,58574.0,0.0180374]
[1725219143923,0.170721,58576.0,58574.0,0.04985261]
[1725219144667,0.170721,58576.0,58574.0,0.06185261]
[1725219144901,0.170721,58576.0,58574.0,0.04985261]
[1725219145354,0.171721,58576.0,58574.0,0.06285261]
[1725219149128,0.001,58576.0,58574.0,0.06285261]
[1725219149362,0.001,58576.0,58575.0,0.03759816]
[1725219149598,0.001,58576.0,58575.0,0.05563392]
[1725219150812,0.001,58576.0,58575.0,0.36875492]
[1725219151084,0.001,58576.0,58575.0,1.05163892]
[1725219151348,0.02678888,58577.0,58576.0,0.170718]
[1725219151584,0.02678888,58577.0,58576.0,0.21809782]
[1725219152783,0.02778888,58577.0,58576.0,0.23009782]
[1725219153003,0.02778888,58577.0,58576.0,0.21809782]
[1725219153004,0.02678888,58577.0,58576.0,0.21809782]
[1725219153247,0.53893388,58577.0,58576.0,0.01803412]
[1725219153506,0.853575,58577.0,58576.0,0.01803412]
[1725219153760,0.853605,58575.0,58574.0,0.0008998]
[1725219154004,0.953605,58575.0,58574.0,0.0008998]
[1725219155197,0.954605,58575.0,58574.0,0.0148998]
[1725219160077,0.949605,58575.0,58574.0,0.0148998]
[1725219164520,0.949605,58575.0,58574.0,0.02423978]
[1725219165241,0.101,58575.0,58574.0,0.02423978]
[1725219165468,0.101,58575.0,58574.0,0.21641538]
[1725219165699,0.001,58575.0,58574.0,0.21300118]
[1725219167326,0.001,58575.0,58574.0,0.55444918]
[1725219167805,0.001,58575.0,58574.0,0.21300118]
[1725219168020,0.001,58575.0,58574.0,0.21641527]
[1725219168246,0.001,58575.0,58574.0,0.21300118]
[1725219168471,0.001,58575.0,58574.0,0.04227718]
[1725219168950,0.001,58575.0,58574.0,0.21300118]
[1725219170120,0.001,58575.0,58574.0,0.04227718]
[1725219174505,0.001,58575.0,58574.0,0.21300118]
[1725219175283,0.001,58575.0,58574.0,0.04227718]
[1725219175991,0.001,58575.0,58574.0,0.0329372]
[1725219179025,0.001818,58575.0,58574.0,0.0329372]
[1725219180242,0.172539,58575.0,58574.0,0.0329372]
[1725219180487,0.272539,58575.0,58574.0,0.0329372]
[1725219181214,0.001818,58575.0,58574.0,0.0329372]
[1725219181457,0.001818,58575.0,58574.0,0.08462732]
[1725219181923,0.172539,58575.0,58574.0,0.08462732]
[1725219182155,0.172539,58575.0,58574.0,0.0329372]
[1725219182379,0.001818,58575.0,58574.0,0.0329372]
[1725219185674,0.1,58586.0,58578.0,0.0762]
[1725219185928,0.17069,58586.0,58583.0,0.15643006]
[1725219186189,0.170687,58587.0,58584.0,0.03271361]
[1725219186448,0.170687,58587.0,58584.0,0.05115181]
[1725219186713,0.170689,58586.0,58584.0,0.05115181]
[1725219187623,0.341365,58589.0,58584.0,0.05115181]
[1725219187624,0.1,58585.0,58584.0,0.05115181]
[1725219187911,0.341372,58587.0,58584.0,0.05115181]
[1725219188166,0.232792,58585.0,58584.0,0.0184382]
[1725219188397,0.332792,58585.0,58584.0,0.0184382]
[1725219188622,0.332792,58585.0,58580.0,0.170706]
[1725219188862,0.332792,58585.0,58584.0,0.0214382]
[1725219189083,0.332792,58585.0,58584.0,0.003]
[1725219189332,0.332792,58585.0,58584.0,0.0214382]
[1725219189566,0.332792,58585.0,58584.0,0.003]
[1725219189795,0.332792,58585.0,58584.0,0.0184382]
[1725219190044,0.332792,58585.0,58579.0,0.15643006]
[1725219190045,0.1621,58585.0,58580.0,0.003]
[1725219190283,0.02678662,58587.0,58584.0,0.0788382]
[1725219190516,0.170689,58586.0,58584.0,0.0604]
[1725219190737,0.1,58585.0,58584.0,0.0604]
[1725219191721,0.1,58585.0,58584.0,0.0634]
[1725219191944,0.1,58585.0,58584.0,0.07551056]
[1725219192877,0.270692,58585.0,58584.0,0.01511056]
[1725219193117,0.270692,58585.0,58584.0,0.035433]
[1725219194041,0.1,58585.0,58584.0,0.035433]
[1725219194334,0.170689,58586.0,58584.0,0.035433]
[1725219194573,0.1,58585.0,58584.0,0.035433]
[1725219194842,0.1,58585.0,58584.0,0.23855246]
[1725219195099,0.1,58585.0,58584.0,0.38005246]
[1725219195325,0.000818,58587.0,58586.0,0.170689]
[1725219195591,0.000818,58587.0,58586.0,0.23802302]
[1725219196296,0.000818,58587.0,58586.0,0.57940102]
[1725219196521,0.000818,58587.0,58586.0,0.23802302]
[1725219196997,0.000818,58587.0,58586.0,0.06392066]
[1725219197213,0.000818,58587.0,58586.0,0.23460966]
[1725219197661,0.000818,58587.0,58586.0,0.23560966]
[1725219198411,0.02760252,58587.0,58586.0,0.23560966]
[1725219198633,0.02760252,58587.0,58586.0,0.58040099]
[1725219198858,0.02760252,58587.0,58586.0,0.57698766]
[1725219199087,0.02760252,58587.0,58586.0,0.23560966]
[1725219200513,0.02760252,58587.0,58586.0,0.25404459]
[1725219201470,0.02760252,58587.0,58586.0,0.25745797]
[1725219201957,0.02760252,58587.0,58586.0,0.59883597]
[1725219203877,0.02760252,58587.0,58586.0,0.94021397]
[1725219204120,0.000818,58587.0,58586.0,0.94021397]
[1725219204891,0.000818,58587.0,58586.0,0.93921397]
[1725219205383,0.001818,58587.0,58586.0,0.95121397]
[1725219208224,0.001818,58587.0,58586.0,1.10849572]
[1725219208677,0.02860129,58587.0,58586.0,1.10849572]
[1725219210124,0.02860129,58587.0,58586.0,1.11349572]
[1725219210358,0.02860129,58587.0,58586.0,1.19459572]
[1725219210830,0.02860129,58587.0,58586.0,1.19118234]
[1725219214448,0.001818,58587.0,58586.0,0.84980434]
[1725219214685,0.513876,58587.0,58586.0,0.03043493]
[1725219215996,0.513876,58587.0,58586.0,0.012]
[1725219216243,0.513876,58587.0,58586.0,0.03043493]
[1725219216704,1.44102,58587.0,58586.0,0.03043493]
[1725219216928,1.44102,58587.0,58586.0,0.012]
[1725219217416,1.46780575,58587.0,58586.0,0.012]
[1725219217697,0.85346,58585.0,58584.0,0.0333328]
[1725219218664,1.194844,58585.0,58584.0,0.0333328]
[1725219218904,1.194844,58585.0,58584.0,0.0383328]
[1725219218905,1.260444,58585.0,58584.0,0.0383328]
[1725219219392,1.260444,58585.0,58584.0,0.0333328]
[1725219219612,1.260444,58585.0,58584.0,0.0383328]
[1725219220889,1.260444,58585.0,58584.0,0.0333328]
[1725219221041,1.260444,58585.0,58584.0,0.0363328]
[1725219221529,1.260444,58585.0,58584.0,0.0333328]
[1725219221736,1.260444,58585.0,58584.0,0.0363328]
[1725219222408,0.12760375,58587.0,58584.0,0.3827208]
[1725219222624,0.12760375,58587.0,58586.0,0.15621954]
[1725219222625,0.02760375,58587.0,58586.0,0.15621954]
[1725219223046,0.000818,58587.0,58586.0,0.17465447]
[1725219224773,0.001818,58587.0,58586.0,0.18665447]
[1725219224985,0.001818,58587.0,58586.0,0.22129556]
[1725219226540,0.001818,58587.0,58586.0,0.18665447]
[1725219226768,0.001818,58587.0,58586.0,0.03043493]
[1725219229248,0.02860183,58587.0,58586.0,0.03043493]
[1725219231043,0.02860183,58587.0,58586.0,0.18665447]
[1725219231263,0.02860183,58587.0,58586.0,0.18755427]
[1725219231748,0.02860183,58587.0,58586.0,0.24783116]
[1725219235406,0.001818,58587.0,58586.0,0.24783116]
[1725219236092,0.001818,58587.0,58586.0,0.41852016]
[1725219236540,0.001818,58587.0,58586.0,0.24783116]
[1725219236987,0.341357,58590.0,58586.0,0.24783116]
[1725219237209,0.170683,58588.0,58587.0,0.03606823]
[1725219237435,0.170679,58590.0,58587.0,0.03606823]
[1725219237660,0.170679,58590.0,58587.0,0.05450152]
[1725219238321,0.170681,58589.0,58587.0,0.05450152]
[1725219238541,0.170683,58588.0,58587.0,0.05450152]
[1725219238760,0.170683,58588.0,58587.0,0.01843329]
[1725219238949,0.170683,58588.0,58587.0,0.02743329]
[1725219239208,0.19746685,58588.0,58587.0,0.01843329]
[1725219239448,0.02678385,58588.0,58587.0,0.01843329]
[1725219239671,0.02678385,58588.0,58587.0,0.02843329]
[1725219240585,0.19746685,58588.0,58587.0,0.02843329]
[1725219240804,0.19746685,58588.0,58587.0,0.01843329]
[1725219241239,0.19746685,58588.0,58587.0,0.02943329]
[1725219241474,1.22156485,58588.0,58587.0,0.02943329]
[1725219241707,1.28456485,58588.0,58587.0,0.02943329]
[1725219241943,1.28456485,58588.0,58587.0,0.011]
[1725219241944,1.46546485,58588.0,58587.0,0.011]
[1725219242183,0.53883285,58588.0,58587.0,0.011]
[1725219242407,0.19746685,58588.0,58587.0,0.0248932]
[1725219242628,0.19746685,58588.0,58587.0,0.02943329]
[1725219243094,0.19828485,58588.0,58587.0,0.02943329]
[1725219243329,0.02760185,58588.0,58587.0,0.02943329]
[1725219244002,0.29828485,58588.0,58587.0,0.01843329]
[1725219244228,0.29828485,58588.0,58587.0,0.02543329]
[1725219244229,0.63965085,58588.0,58587.0,0.02543329]
[1725219244474,0.512058,58587.0,58586.0,0.0008998]
[1725219245138,0.612058,58587.0,58586.0,0.0008998]
[1725219246030,0.612058,58587.0,58586.0,0.0038998]
[1725219247177,0.612058,58587.0,58586.0,0.0008998]
[1725219247404,0.613058,58587.0,58586.0,0.0128998]
[1725219248315,0.612058,58587.0,58586.0,0.0008998]
[1725219248537,0.95443,58587.0,58586.0,0.0118998]
[1725219248754,0.95443,58587.0,58586.0,0.0008998]
[1725219248970,0.613058,58587.0,58586.0,0.0008998]
[1725219249182,0.614058,58587.0,58586.0,0.0128998]
[1725219250239,0.612058,58587.0,58586.0,0.0008998]
[1725219250468,0.612058,58587.0,58586.0,0.0118998]
[1725219251474,0.612058,58587.0,58586.0,0.0008998]
[1725219251919,0.613058,58587.0,58586.0,0.0128998]
[1725219252134,0.95443,58587.0,58586.0,0.0008998]
[1725219252349,0.95443,58587.0,58586.0,0.0118998]
[1725219253670,0.95443,58587.0,58586.0,0.0008998]
[1725219253671,1.372102,58587.0,58586.0,0.0008998]
[1725219253888,1.433102,58587.0,58586.0,0.0008998]
[1725219254107,1.434102,58587.0,58586.0,0.0128998]
[1725219254326,1.434102,58587.0,58586.0,0.0008998]
[1725219254814,1.434102,58587.0,58586.0,0.0018998]
[1725219255035,1.433102,58587.0,58586.0,0.0008998]
[1725219255253,1.433102,58587.0,58586.0,0.0018998]
[1725219259055,1.45988957,58587.0,58586.0,0.0018998]
[1725219260212,1.38258957,58587.0,58586.0,0.0018998]
[1725219261085,1.38258957,58587.0,58586.0,0.0008998]
[1725219261312,1.38258957,58587.0,58586.0,0.0028998]
[1725219262206,1.38258957,58587.0,58586.0,0.0008998]
[1725219262421,1.38258957,58587.0,58586.0,0.0018998]
[1725219265113,1.38258957,58587.0,58586.0,0.0008998]
[1725219265544,1.38258957,58587.0,58586.0,0.0028998]
[1725219266216,1.89251321,58587.0,58586.0,0.0028998]
[1725219266407,2.03002157,58587.0,58586.0,0.0028998]
[1725219267127,2.05302157,58587.0,58586.0,0.0028998]
[1725219267341,2.05302157,58587.0,58586.0,0.0008998]
[1725219267559,2.05802157,58587.0,58586.0,0.0008998]
[1725219267779,1.83466157,58587.0,58586.0,0.0008998]
[1725219268228,1.84166157,58587.0,58586.0,0.0018998]
[1725219268454,1.84166157,58587.0,58586.0,0.0008998]
[1725219268455,1.83666157,58587.0,58586.0,0.0008998]
[1725219268672,1.83666157,58587.0,58586.0,0.0018998]
[1725219268927,1.39758957,58587.0,58586.0,0.0018998]
[1725219269388,0.99521757,58587.0,58586.0,0.0018998]
[1725219269618,0.65384557,58587.0,58586.0,0.1418998]
[1725219269869,0.31247357,58587.0,58586.0,0.15942306]
[1725219270083,0.63884557,58587.0,58586.0,0.17856514]
[1725219270551,0.63884557,58587.0,58586.0,0.17956514]
[1725219270552,0.64584557,58587.0,58586.0,0.17956514]
[1725219270771,0.64584557,58587.0,58586.0,0.17856514]
[1725219270992,0.64684557,58587.0,58586.0,0.17856514]
[1725219271512,0.30547357,58587.0,58586.0,0.17856514]
[1725219272446,0.13478757,58587.0,58586.0,0.17856514]
[1725219273662,0.30547357,58587.0,58586.0,0.17856514]
[1725219273881,0.30547357,58587.0,58586.0,0.16104188]
[1725219274359,0.13478757,58587.0,58586.0,0.16104188]
[1725219274588,0.03478757,58587.0,58586.0,0.16104188]
[1725219274826,0.13478757,58587.0,58586.0,0.16104188]
[1725219275324,0.108,58587.0,58586.0,0.16104188]
[1725219275773,0.008,58587.0,58586.0,0.16104188]
[1725219276196,0.100818,58588.0,58586.0,0.16104188]
[1725219276447,0.100818,58588.0,58586.0,0.17304188]
[1725219276448,0.001,58587.0,58586.0,0.17304188]
[1725219277361,0.100818,58588.0,58586.0,0.16104188]
[1725219277602,0.101818,58588.0,58586.0,0.17204188]
[1725219278051,0.100818,58588.0,58586.0,0.16104188]
[1725219278266,0.001,58587.0,58586.0,0.17304188]
[1725219279418,0.100818,58588.0,58586.0,0.16104188]
[1725219279858,0.101818,58588.0,58586.0,0.17204188]
[1725219280090,0.101818,58588.0,58587.0,0.170686]
[1725219280310,0.001818,58588.0,58586.0,0.34372988]
[1725219280524,0.001,58587.0,58586.0,0.3235878]
[1725219280764,0.000818,58588.0,58586.0,0.1408998]
[1725219280978,0.001818,58588.0,58586.0,0.1518998]
[1725219282300,0.001818,58588.0,58586.0,0.39231966]
[1725219283210,0.001818,58588.0,58586.0,0.3225878]
[1725219286521,0.001818,58588.0,58586.0,0.1518998]
[1725219287433,0.001818,58588.0,58587.0,0.143]
[1725219287663,0.001818,58588.0,58587.0,1.01143]
[1725219287887,0.001818,58588.0,58587.0,1.352802]
[1725219288594,0.001818,58588.0,58587.0,1.48080542]
[1725219288817,0.001818,58588.0,58587.0,1.352802]
[1725219289286,0.001818,58588.0,58587.0,1.48080472]
[1725219289535,0.000818,58588.0,58587.0,1.48080472]
[1725219289763,0.000818,58588.0,58587.0,1.352802]
[1725219290004,0.000818,58588.0,58587.0,1.362802]
[1725219290248,0.000818,58588.0,58587.0,1.352802]
[1725219290482,0.000818,58588.0,58587.0,1.38694244]
[1725219290753,0.000818,58588.0,58587.0,1.48928713]
[1725219290983,0.0275972,58588.0,58587.0,1.48928713]
[1725219291699,0.0275972,58588.0,58587.0,1.38694244]
[1725219291931,0.0275972,58588.0,58587.0,1.48925867]
[1725219292674,0.000818,58590.0,58589.0,1.352763]
[1725219293141,0.000818,58590.0,58589.0,1.37290016]
[1725219294111,0.000818,58590.0,58589.0,1.38690016]
[1725219294907,0.000818,58590.0,58589.0,1.82797936]
[1725219295141,0.000818,58590.0,58589.0,1.84818363]
[1725219295590,0.000818,58590.0,58589.0,1.7458674]
[1725219296514,0.000818,58590.0,58589.0,1.82250673]
[1725219297710,0.000818,58590.0,58589.0,1.7458674]
[1725219297930,0.000818,58590.0,58589.0,1.82250673]
[1725219298395,0.000818,58590.0,58589.0,1.82050673]
[1725219298607,0.000818,58590.0,58589.0,1.7458674]
[1725219298820,0.000818,58590.0,58589.0,1.7438674]
[1725219301545,0.000818,58590.0,58589.0,1.82050673]
[1725219301752,0.000818,58590.0,58589.0,1.7438674]
[1725219301955,0.000818,58590.0,58589.0,1.82050673]
[1725219302176,0.02677686,58596.0,58589.0,1.82050673]
[1725219302177,0.01673553,58596.0,58595.0,1.355641]
[1725219302391,0.000818,58603.0,58602.0,0.516927]
[1725219302595,0.000818,58603.0,58602.0,0.81918745]
[1725219303036,0.000818,58603.0,58602.0,0.83191808]
[1725219303279,0.000818,58603.0,58602.0,1.51448808]
[1725219303722,0.000818,58603.0,58602.0,1.90377308]
[1725219303949,0.000818,58603.0,58602.0,1.90177308]
[1725219304152,0.000818,58603.0,58602.0,1.95480497]
[1725219304586,0.000818,58603.0,58602.0,1.90177308]
[1725219304825,0.000818,58603.0,58602.0,1.90377308]
[1725219305885,0.000818,58603.0,58602.0,1.89077308]
[1725219306291,0.000818,58603.0,58602.0,1.90477308]
[1725219306496,0.000818,58603.0,58602.0,1.90277308]
[1725219306707,0.000818,58603.0,58602.0,1.88877308]
[1725219306926,0.000818,58603.0,58602.0,1.90277308]